fUST/lending_fUST_20240412
["ID","MTS","AMOUNT","RATE_DAILY","PERIOD"]
[322214569,1712878233416,-500.0,0.00027397,2]
[322214570,1712878233424,-500.0,0.00027397,2]
[322214571,1712878233433,-500.0,0.00027397,2]
[322214572,1712878233442,-500.0,0.00027397,2]
[322214573,1712878233451,-500.0,0.00027397,2]
[322214574,1712878233459,-500.0,0.00027397,2]
[322214575,1712878233468,-6224.68,0.00027397,2]
[322214576,1712878233476,-501.07271869,0.00027397,2]
[322214577,1712878233485,-500.0,0.00027397,2]
[322214578,1712878233494,-500.0,0.00027397,2]
[322214579,1712878233502,-1278.61588701,0.00027397,2]
[322214598,1712878238242,-408.59604516,0.00027397,2]
[322214896,1712878242196,-2613.72806783,0.00027397,2]
[322214897,1712878242206,-500.0,0.00027397,2]
[322214898,1712878242215,-220.90202898,0.00027397,2]
[322214899,1712878242225,-500.0,0.00027397,2]
[322214900,1712878242235,-1297.06,0.00027397,2]
[322214901,1712878242244,-1212.25,0.00027397,2]
[322214902,1712878242253,-500.0,0.00027397,2]
[322214903,1712878242263,-11954.93,0.00027397,2]
[322214904,1712878242273,-500.0,0.00027397,2]
[322214905,1712878242282,-500.0,0.00027397,2]
[322214906,1712878242291,-500.0,0.00027397,2]
[322214907,1712878242301,-500.0,0.00027397,2]
[322214908,1712878242310,-1139.75,0.00027397,2]
[322214909,1712878242320,-500.0,0.00027397,2]
[322214910,1712878242329,-2975.36,0.00027397,2]
[322214911,1712878242339,-308.75985958,0.00027397,2]
[322214912,1712878242348,-500.0,0.00027397,2]
[322214913,1712878242357,-500.0,0.00027397,2]
[322214914,1712878242368,-294.44027,0.00027397,2]
[322214915,1712878242377,-1146.14,0.00027397,2]
[322214916,1712878242387,-500.0,0.00027397,2]
[322214917,1712878242396,-500.0,0.00027397,2]
[322214918,1712878242407,-500.0,0.00027397,2]
[322214920,1712878242416,-701.43,0.00027397,2]
[322214923,1712878242426,-2162.6,0.00027397,2]
[322214925,1712878242435,-502.78102773,0.00027397,2]
[322214927,1712878242445,-500.0,0.00027397,2]
[322214929,1712878242455,-500.0,0.00027397,2]
[322214930,1712878242464,-1471.34,0.00027397,2]
[322214931,1712878242474,-500.0,0.00027397,2]
[322214932,1712878242483,-500.0,0.00027397,2]
[322214933,1712878242492,-1366.75,0.00027397,2]
[322214934,1712878242502,-154.93802479,0.00027397,2]
[322214935,1712878242511,-500.0,0.00027397,2]
[322214936,1712878242520,-167.280133,0.00027397,2]
[322214937,1712878242530,-500.0,0.00027397,2]
[322214938,1712878242539,-528.15,0.00027397,2]
[322214939,1712878242549,-521.43,0.00027397,2]
[322214940,1712878242559,-766.4,0.00027397,2]
[322214941,1712878242568,-400.0,0.00027397,2]
[322214942,1712878242578,-166.666666,0.00027397,2]
[322214944,1712878242587,-359.88323376,0.00027434,2]
[322214945,1712878242596,-359.88323376,0.0002757,2]
[322214946,1712878242606,-2000.0,0.00027571,2]
[322214947,1712878242614,-153.0,0.000276,2]
[322214948,1712878242623,-153.0,0.000276,2]
[322214949,1712878242633,-162.33940025,0.00027665,3]
[322214950,1712878242642,-432.56996445,0.0002767,2]
[322214951,1712878242651,-500.0,0.0002767,2]
[322214952,1712878242662,-500.0,0.0002767,2]
[322214953,1712878242671,-500.0,0.00027671,2]
[322214954,1712878242680,-500.0,0.00027671,2]
[322214955,1712878242689,-500.0,0.00027671,2]
[322214956,1712878242699,-617.34935005,0.00027671,2]
[322214957,1712878242708,-507.05941303,0.00027671,2]
[322214958,1712878242716,-500.0,0.00027671,2]
[322214959,1712878242738,-500.0,0.00027671,2]
[322214960,1712878242747,-500.0,0.00027671,2]
[322214961,1712878242757,-795.64,0.00027671,2]
[322214962,1712878242766,-500.0,0.00027671,2]
[322214963,1712878242776,-500.0,0.00027671,2]
[322214964,1712878242793,-500.0,0.00027671,2]
[322214965,1712878242803,-500.0,0.00027671,2]
[322214966,1712878242813,-500.0,0.00027671,2]
[322214967,1712878242823,-331.50698994,0.00027671,2]
[322214968,1712878242833,-500.0,0.00027671,2]
[322214969,1712878242842,-500.0,0.00027671,2]
[322214970,1712878242851,-500.0,0.00027671,2]
[322214971,1712878242861,-503.76546229,0.00027671,2]
[322214972,1712878242873,-165.86285622,0.00027671,2]
[322214973,1712878242883,-500.0,0.00027671,2]
[322214974,1712878242892,-500.0,0.00027671,2]
[322214976,1712878242902,-500.0,0.00027671,2]
[322214977,1712878242914,-500.0,0.00027671,2]
[322214978,1712878242926,-537.5,0.00027671,2]
[322214979,1712878242935,-452.51487973,0.00027671,2]
[322214980,1712878242944,-339.12255361,0.00027671,2]
[322214981,1712878242954,-500.0,0.00027671,2]
[322214982,1712878242966,-500.0,0.00027671,2]
[322214983,1712878242976,-1346.0,0.00027671,2]
[322214984,1712878242986,-831.77,0.00027671,2]
[322214985,1712878242997,-454.30543053,0.00027671,2]
[322214986,1712878243007,-500.0,0.00027671,2]
[322214987,1712878243016,-500.0,0.00027671,2]
[322214988,1712878243026,-1170.91,0.00027671,2]
[322214989,1712878243035,-500.0,0.00027671,2]
[322214990,1712878243045,-500.0,0.00027671,2]
[322214991,1712878243054,-500.0,0.00027671,2]
[322214992,1712878243063,-500.0,0.00027671,2]
[322214993,1712878243073,-500.0,0.00027671,2]
[322214994,1712878243082,-500.0,0.00027671,2]
[322214995,1712878243091,-500.0,0.00027671,2]
[322214996,1712878243100,-500.0,0.00027671,2]
[322214997,1712878243110,-639.14,0.00027671,2]
[322214998,1712878243119,-923.46,0.00027671,2]
[322214999,1712878243129,-649.10497457,0.00027671,2]
[322215000,1712878243139,-500.0,0.00027671,2]
[322215001,1712878243148,-500.0,0.00027671,2]
[322215002,1712878243159,-672.49,0.00027671,2]
[322215003,1712878243169,-500.0,0.00027671,2]
[322215004,1712878243178,-500.0,0.00027671,2]
[322215005,1712878243188,-3949.13,0.00027671,2]
[322215006,1712878243197,-500.0,0.00027671,2]
[322215007,1712878243207,-1436.41,0.00027671,2]
[322215008,1712878243216,-955.05,0.00027671,2]
[322215009,1712878243226,-500.0,0.00027671,2]
[322215010,1712878243235,-500.0,0.00027671,2]
[322215011,1712878243245,-500.0,0.00027671,2]
[322215012,1712878243254,-953.72556634,0.00027671,2]
[322215039,1712878345188,161.0,0.00027,2]
[322215046,1712879253130,-159.84329417,0.0002547,2]
[322215047,1712879253151,-226.15535091,0.00025571,2]
[322215048,1712879354137,-187.88519267,0.00025571,2]
[322215049,1712879354157,-179.94161688,0.00025803,2]
[322215050,1712879354179,-300.0,0.000259,2]
[322215051,1712879354199,-300.0,0.000259,2]
[322215052,1712879354220,-22755.98720092,0.00025901,2]
[322215053,1712879354242,-38542.90727338,0.00025902,2]
[322215054,1712879354264,-1614.0088986,0.00025903,2]
[322215055,1712879354285,-113.46906146,0.00026301,2]
[322215056,1712879357121,-66.47255542,0.00026301,2]
[322215057,1712879357141,-179.94161688,0.00026799,2]
[322215058,1712879357161,-161.0,0.00027,2]
[322215059,1712879357180,-153.0,0.00027,2]
[322215061,1712879428763,276.02702905,0.00023802,2]
[322215077,1712879432045,-307.76623,0.00027078,2]
[322215078,1712879432056,-153.0,0.00027078,2]
[322215079,1712879432066,-154.723071,0.00027078,2]
[322215080,1712879432076,-153.0,0.00027078,2]
[322215081,1712879432087,-153.0,0.00027178,2]
[322215082,1712879432096,-179.94161688,0.00027297,2]
[322215083,1712879432109,-300.0,0.00027393,2]
[322215084,1712879432119,-300.0,0.00027393,2]
[322215085,1712879432129,-500.0,0.00027394,2]
[322215086,1712879432141,-194.64842809,0.00027394,2]
[322215087,1712879432151,-153.60574541,0.00027394,2]
[322215088,1712879432162,-360.85132278,0.00027394,2]
[322215089,1712879432171,-314.80891164,0.00027394,2]
[322215100,1712879437897,-86.02992391,0.00027394,2]
[322215101,1712879437907,-490.0,0.00027394,2]
[322215102,1712879437917,-8052.2639707,0.00027394,2]
[322215103,1712879437925,-323.41256404,0.00027395,2]
[322215104,1712879437935,-190272.62020794,0.00027395,2]
[322215114,1712879438378,-2377.53171954,0.00027395,2]
[322215116,1712879438840,-2459.47072936,0.00027395,2]
[322215122,1712879440110,-696.41999977,0.00027395,2]
[322215123,1712879440123,-7743.64204618,0.00027395,2]
[322215124,1712879440133,-503.30373975,0.00027397,2]
[322215125,1712879440144,-500.0,0.00027397,2]
[322215126,1712879440154,-500.0,0.00027397,2]
[322215127,1712879440163,-500.0,0.00027397,2]
[322215128,1712879440172,-761.93,0.00027397,2]
[322215129,1712879440182,-542.88744001,0.00027397,2]
[322215130,1712879440191,-500.0,0.00027397,2]
[322215132,1712879440200,-153.6023125,0.00027397,2]
[322215134,1712879440210,-340.35534432,0.00027397,2]
[322215136,1712879440219,-500.0,0.00027397,2]
[322215137,1712879440228,-500.0,0.00027397,2]
[322215138,1712879440237,-500.0,0.00027397,2]
[322215139,1712879440246,-500.0,0.00027397,2]
[322215140,1712879440255,-500.0,0.00027397,2]
[322215141,1712879440264,-500.0,0.00027397,2]
[322215142,1712879440273,-223.66,0.00027397,2]
[322215143,1712879440282,-500.0,0.00027397,2]
[322215144,1712879440291,-505.16217187,0.00027397,2]
[322215145,1712879440300,-500.0,0.00027397,2]
[322215146,1712879440309,-762.45,0.00027397,2]
[322215147,1712879440318,-500.0,0.00027397,2]
[322215148,1712879440330,-248.9946814,0.00027397,2]
[322215149,1712879440339,-500.0,0.00027397,2]
[322215150,1712879440348,-500.0,0.00027397,2]
[322215151,1712879440358,-500.0,0.00027397,2]
[322215152,1712879440368,-503.97973998,0.00027397,2]
[322215153,1712879440378,-500.0,0.00027397,2]
[322215154,1712879440388,-500.310896,0.00027397,2]
[322215155,1712879440398,-500.0,0.00027397,2]
[322215156,1712879440407,-500.0,0.00027397,2]
[322215157,1712879440416,-500.0,0.00027397,2]
[322215158,1712879440426,-500.0,0.00027397,2]
[322215159,1712879440435,-500.0,0.00027397,2]
[322215160,1712879440445,-500.0,0.00027397,2]
[322215161,1712879440454,-500.0,0.00027397,2]
[322215162,1712879440463,-500.0,0.00027397,2]
[322215163,1712879440473,-1668.45,0.00027397,2]
[322215164,1712879440482,-500.0,0.00027397,2]
[322215165,1712879440491,-500.0,0.00027397,2]
[322215166,1712879440501,-500.0,0.00027397,2]
[322215167,1712879440512,-500.0,0.00027397,2]
[322215168,1712879440522,-500.0,0.00027397,2]
[322215169,1712879440532,-500.0,0.00027397,2]
[322215170,1712879440542,-500.0,0.00027397,2]
[322215171,1712879440551,-500.0,0.00027397,2]
[322215172,1712879440562,-640.86072006,0.00027397,2]
[322215173,1712879440572,-518.31,0.00027397,2]
[322215174,1712879440582,-500.0,0.00027397,2]
[322215175,1712879440591,-500.0,0.00027397,2]
[322215176,1712879440600,-1297.58,0.00027397,2]
[322215177,1712879440610,-500.0,0.00027397,2]
[322215178,1712879440619,-500.0,0.00027397,2]
[322215179,1712879440629,-500.0,0.00027397,2]
[322215180,1712879440639,-1073.33,0.00027397,2]
[322215181,1712879440650,-500.0,0.00027397,2]
[322215182,1712879440659,-393.75733556,0.00027397,2]
[322215183,1712879440669,-506.15,0.00027397,2]
[322215184,1712879440679,-500.0,0.00027397,2]
[322215185,1712879440689,-585.88,0.00027397,2]
[322215186,1712879440698,-888.48,0.00027397,2]
[322215187,1712879440709,-500.0,0.00027397,2]
[322215188,1712879440720,-500.0,0.00027397,2]
[322215189,1712879440730,-500.0,0.00027397,2]
[322215190,1712879440740,-500.0,0.00027397,2]
[322215191,1712879440749,-349.66647012,0.00027397,2]
[322215192,1712879440760,-500.0,0.00027397,2]
[322215193,1712879440770,-616.45,0.00027397,2]
[322215194,1712879440780,-500.0,0.00027397,2]
[322215195,1712879440790,-500.0,0.00027397,2]
[322215196,1712879440802,-500.0,0.00027397,2]
[322215197,1712879440811,-500.0,0.00027397,2]
[322215198,1712879440821,-1375.43,0.00027397,2]
[322215199,1712879440830,-1316.71,0.00027397,2]
[322215200,1712879440922,-500.0,0.00027397,2]
[322215201,1712879440931,-500.0,0.00027397,2]
[322215202,1712879440941,-500.0,0.00027397,2]
[322215203,1712879440951,-3620.04,0.00027397,2]
[322215204,1712879440960,-500.0,0.00027397,2]
[322215205,1712879440970,-500.0,0.00027397,2]
[322215206,1712879440979,-500.0,0.00027397,2]
[322215207,1712879440989,-500.0,0.00027397,2]
[322215208,1712879440998,-500.0,0.00027397,2]
[322215209,1712879441007,-500.0,0.00027397,2]
[322215210,1712879441016,-500.0,0.00027397,2]
[322215211,1712879441025,-1080.03,0.00027397,2]
[322215212,1712879441034,-131.49088488,0.00027397,2]
[322215226,1712879550758,166.27852258,0.00026355,2]
[322215227,1712879678351,905.999999,0.00023,2]
[322215228,1712879689282,5000.0,0.00026,10]
[322215250,1712880351201,-1964.94666504,0.00025292,2]
[322215251,1712880351221,-647.16247181,0.00025292,2]
[322215252,1712880438099,-1024.21797215,0.00025292,2]
[322215253,1712880438121,-300.0,0.00025292,2]
[322215254,1712880438143,-300.0,0.00025292,2]
[322215255,1712880438163,-587.62633929,0.00025293,2]
[322215256,1712880443105,-683.06828853,0.00025293,2]
[322215257,1712880554094,-300.0,0.00025291,2]
[322215258,1712880554115,-300.0,0.00025291,2]
[322215259,1712880554135,-6911.45925146,0.00025292,2]
[322215260,1712880554154,-13035.00847191,0.00025292,2]
[322215261,1712880554174,-6911.45925146,0.00025292,2]
[322215262,1712880554193,-6911.45925146,0.00025292,2]
[322215263,1712880554213,-4516.02177267,0.00025293,2]
[322215264,1712880554232,-314.91431208,0.00025297,2]
[322215265,1712880554251,-17845.3269502,0.0002587,2]
[322215266,1712880554271,-925.31693807,0.00026025,2]
[322215267,1712880554297,-277.18296708,0.0002635,2]
[322215268,1712880554318,-687.92135181,0.00026706,2]
[322215269,1712880554338,-153.0,0.000268,2]
[322215270,1712880554357,-153.0,0.000268,2]
[322215271,1712880554376,-153.0,0.000268,2]
[322215272,1712880560103,-153.0,0.00027,2]
[322215273,1712880560123,-519.2554823,0.00027,2]
[322215286,1712880632177,-160.99996677,0.00027297,2]
[322215287,1712880632187,-169.44672998,0.00027299,2]
[322215288,1712880632234,-130.55327002,0.00027299,2]
[322215289,1712880632244,-153.0,0.000273,2]
[322215290,1712880632254,-153.0,0.000273,2]
[322215291,1712880632263,-153.0,0.000273,2]
[322215292,1712880632272,-153.0,0.000273,2]
[322215293,1712880632282,-308.223453,0.000273,2]
[322215294,1712880632291,-153.0,0.000273,2]
[322215295,1712880632300,-153.0,0.000273,2]
[322215296,1712880632310,-153.0,0.000273,2]
[322215297,1712880632319,-153.0,0.000273,2]
[322215298,1712880632329,-153.0,0.000273,2]
[322215299,1712880632338,-153.0,0.000273,2]
[322215300,1712880632347,-153.0,0.000273,2]
[322215301,1712880632356,-153.0,0.000273,2]
[322215302,1712880632366,-153.0,0.000273,2]
[322215303,1712880632375,-154.1119477,0.000273,2]
[322215304,1712880632386,-4365.64775226,0.0002738,2]
[322215305,1712880632395,-2093.30000142,0.00027393,2]
[322215306,1712880632405,-1166.58642061,0.00027395,2]
[322215307,1712880632415,-1087.73357907,0.00027395,2]
[322215308,1712880632424,-323.41256404,0.00027395,2]
[322215309,1712880632433,-157.34709437,0.00027395,2]
[322215310,1712880632443,-440.70718582,0.00027395,2]
[322215311,1712880632452,-1339.42588591,0.00027395,2]
[322215312,1712880632461,-203.289758,0.00027395,2]
[322215313,1712880632470,-155.21795967,0.00027395,2]
[322215314,1712880632480,-210.0,0.00027396,2]
[322215315,1712880632489,-438.96069291,0.00027396,2]
[322215316,1712880632498,-242.64289685,0.00027396,2]
[322215317,1712880632508,-2368.53138688,0.00027397,2]
[322215318,1712880632517,-284.61768547,0.00027397,2]
[322215319,1712880632527,-500.0,0.00027397,2]
[322215320,1712880632536,-500.0,0.00027397,2]
[322215321,1712880632546,-500.0,0.00027397,2]
[322215322,1712880632555,-500.0,0.00027397,2]
[322215323,1712880632565,-247.00310956,0.00027397,2]
[322215324,1712880632575,-501.65599996,0.00027397,2]
[322215325,1712880632584,-500.0,0.00027397,2]
[322215326,1712880632593,-500.0,0.00027397,2]
[322215327,1712880632602,-500.0,0.00027397,2]
[322215328,1712880632611,-321.99071802,0.00027397,2]
[322215329,1712880632620,-1598.94,0.00027397,2]
[322215330,1712880632630,-500.0,0.00027397,2]
[322215331,1712880632640,-536.11,0.00027397,2]
[322215332,1712880632649,-258.79704055,0.00027397,2]
[322215333,1712880632663,-500.0,0.00027397,2]
[322215334,1712880632672,-335.74968347,0.00027397,2]
[322215335,1712880632682,-503.97053309,0.00027397,2]
[322215336,1712880632691,-500.0,0.00027397,2]
[322215337,1712880632701,-500.0,0.00027397,2]
[322215338,1712880632710,-500.0,0.00027397,2]
[322215339,1712880632719,-500.0,0.00027397,2]
[322215340,1712880632729,-500.0,0.00027397,2]
[322215341,1712880632739,-500.0,0.00027397,2]
[322215342,1712880632749,-500.0,0.00027397,2]
[322215343,1712880632759,-500.0,0.00027397,2]
[322215344,1712880632768,-500.0,0.00027397,2]
[322215345,1712880632777,-500.0,0.00027397,2]
[322215346,1712880632787,-500.0,0.00027397,2]
[322215347,1712880632796,-500.0,0.00027397,2]
[322215348,1712880632805,-171.09298595,0.00027397,2]
[322215349,1712880632815,-500.0,0.00027397,2]
[322215350,1712880632826,-500.0,0.00027397,2]
[322215351,1712880632836,-500.0,0.00027397,2]
[322215352,1712880632845,-597.68,0.00027397,2]
[322215353,1712880632855,-500.0,0.00027397,2]
[322215354,1712880632866,-500.0,0.00027397,2]
[322215355,1712880632876,-500.0,0.00027397,2]
[322215356,1712880632887,-500.0,0.00027397,2]
[322215357,1712880632897,-500.0,0.00027397,2]
[322215358,1712880632907,-500.0,0.00027397,2]
[322215359,1712880632916,-511.81432731,0.00027397,2]
[322215360,1712880632927,-500.0,0.00027397,2]
[322215361,1712880632936,-500.0,0.00027397,2]
[322215362,1712880632947,-500.0,0.00027397,2]
[322215363,1712880632957,-500.0,0.00027397,2]
[322215364,1712880632967,-500.0,0.00027397,2]
[322215365,1712880632978,-500.0,0.00027397,2]
[322215366,1712880633079,-1243.52,0.00027397,2]
[322215367,1712880633089,-500.0,0.00027397,2]
[322215368,1712880633098,-500.0,0.00027397,2]
[322215369,1712880633108,-1028.61,0.00027397,2]
[322215370,1712880633118,-500.0,0.00027397,2]
[322215371,1712880633129,-500.0,0.00027397,2]
[322215372,1712880633140,-500.0,0.00027397,2]
[322215373,1712880633150,-500.0,0.00027397,2]
[322215374,1712880633161,-561.47,0.00027397,2]
[322215375,1712880633171,-851.46,0.00027397,2]
[322215376,1712880633181,-500.0,0.00027397,2]
[322215377,1712880633191,-500.0,0.00027397,2]
[322215378,1712880633201,-500.0,0.00027397,2]
[322215379,1712880633211,-500.0,0.00027397,2]
[322215380,1712880633221,-500.0,0.00027397,2]
[322215381,1712880633231,-777.59,0.00027397,2]
[322215382,1712880633241,-590.76,0.00027397,2]
[322215383,1712880633251,-500.0,0.00027397,2]
[322215384,1712880633262,-500.0,0.00027397,2]
[322215385,1712880633272,-500.0,0.00027397,2]
[322215386,1712880633282,-500.0,0.00027397,2]
[322215387,1712880633293,-500.0,0.00027397,2]
[322215388,1712880633303,-817.2,0.00027397,2]
[322215389,1712880633314,-500.0,0.00027397,2]
[322215390,1712880633324,-3999.04,0.00027397,2]
[322215391,1712880633335,-500.0,0.00027397,2]
[322215392,1712880633345,-2187.15,0.00027397,2]
[322215393,1712880633356,-960.16,0.00027397,2]
[322215394,1712880633366,-500.0,0.00027397,2]
[322215395,1712880633376,-500.0,0.00027397,2]
[322215396,1712880633387,-500.0,0.00027397,2]
[322215397,1712880633396,-1261.85,0.00027397,2]
[322215398,1712880633405,-1318.12,0.00027397,2]
[322215399,1712880633414,-611.01294655,0.00027397,2]
[322215400,1712880633423,-154.98450155,0.00027397,2]
[322215401,1712880633433,-219.95292482,0.00027397,2]
[322215402,1712880633443,-500.0,0.00027397,2]
[322215403,1712880633452,-500.0,0.00027397,2]
[322215404,1712880633462,-500.0,0.00027397,2]
[322215405,1712880633471,-500.0,0.00027397,2]
[322215406,1712880633480,-500.0,0.00027397,2]
[322215407,1712880633489,-501.64134912,0.00027397,2]
[322215408,1712880633498,-500.0,0.00027397,2]
[322215409,1712880633507,-500.0,0.00027397,2]
[322215410,1712880633516,-1164.59,0.00027397,2]
[322215411,1712880633526,-13361.23,0.00027397,2]
[322215412,1712880633535,-500.0,0.00027397,2]
[322215413,1712880633544,-852.11,0.00027397,2]
[322215414,1712880633554,-500.0,0.00027397,2]
[322215415,1712880633563,-500.0,0.00027397,2]
[322215416,1712880633572,-815.21,0.00027397,2]
[322215417,1712880633581,-2643.29,0.00027397,2]
[322215418,1712880633590,-500.0,0.00027397,2]
[322215419,1712880633598,-500.0,0.00027397,2]
[322215420,1712880633607,-500.0,0.00027397,2]
[322215421,1712880633616,-500.0,0.00027397,2]
[322215422,1712880633626,-500.0,0.00027397,2]
[322215423,1712880633637,-166.29590232,0.00027397,2]
[322215424,1712880633647,-500.0,0.00027397,2]
[322215425,1712880633658,-500.0,0.00027397,2]
[322215426,1712880633667,-510.63107568,0.00027397,2]
[322215427,1712880633676,-500.0,0.00027397,2]
[322215428,1712880633685,-1878.02,0.00027397,2]
[322215429,1712880633696,-500.0,0.00027397,2]
[322215430,1712880633705,-1243.02,0.00027397,2]
[322215431,1712880633714,-809.49,0.00027397,2]
[322215432,1712880633723,-500.0,0.00027397,2]
[322215433,1712880633734,-500.0,0.00027397,2]
[322215434,1712880633744,-4121.73,0.00027397,2]
[322215435,1712880633753,-144.7532355,0.00027397,2]
[322215436,1712880634929,359.12221478,0.00025297,2]
[322215442,1712880638170,-3930.43175411,0.00027397,2]
[322215486,1712880640184,-629.1278318,0.00027397,2]
[322215487,1712880640198,-598.0205773,0.00027397,2]
[322215488,1712880640241,-318.12210289,0.00027397,2]
[322215539,1712880643366,-344.8544984,0.00027397,2]
[322215541,1712880643377,-500.0,0.00027397,2]
[322215543,1712880643388,-500.0,0.00027397,2]
[322215544,1712880643400,-1197.23,0.00027397,2]
[322215545,1712880643410,-1161.74,0.00027397,2]
[322215546,1712880643422,-500.0,0.00027397,2]
[322215547,1712880643433,-500.0,0.00027397,2]
[322215548,1712880643444,-500.0,0.00027397,2]
[322215549,1712880643456,-500.0,0.00027397,2]
[322215550,1712880643466,-11456.8,0.00027397,2]
[322215551,1712880643475,-592.08551561,0.00027397,2]
[322215568,1712880917304,21312.0,0.00025,2]
[322215571,1712881397572,8710.71975829,0.00026599,120]
[322215572,1712881415417,176.7106089,0.00025033,2]
[322215574,1712881534167,-277.18296708,0.00025293,2]
[322215575,1712881534189,-407.88528427,0.00025294,2]
[322215576,1712881534210,-188.71573999,0.00025296,2]
[322215577,1712881534231,-338.86770323,0.00025297,2]
[322215578,1712881534254,-371.20924334,0.00025937,2]
[322215580,1712881600746,1011.56633989,0.00026,10]
[322215581,1712881641108,-225.91180216,0.00025297,2]
[322215582,1712881641132,-769.6955947,0.00025937,2]
[322215583,1712881641157,-222.45673557,0.00025937,2]
[322215584,1712881641178,-3988.43366011,0.00026,10]
[322215585,1712881641200,-154.9690062,0.00026024,2]
[322215586,1712881641221,-277.75872224,0.00026034,2]
[322215587,1712881641249,-529.17840841,0.00026034,2]
[322215588,1712881641269,-188.55164221,0.00026034,2]
[322215589,1712881641293,-300.0,0.00026034,2]
[322215590,1712881641314,-435.93996497,0.00026035,2]
[322215591,1712881641334,-41027.3799425,0.00026036,2]
[322215592,1712881642101,-152.20243939,0.00025837,2]
[322215593,1712881642126,-475.07431665,0.00026036,2]
[322215594,1712881644101,-2417.25708628,0.00026036,2]
[322215595,1712881750090,-3068.67292652,0.00025776,2]
[322215597,1712881774087,-1931.32707348,0.00025776,2]
[322215598,1712881774108,-300.0,0.00025853,2]
[322215599,1712881774131,-6402.18949018,0.00025854,2]
[322215635,1712881832518,-1126.2797205,0.00025596,2]
[322215636,1712881832532,-3873.7202795,0.00025596,2]
[322215637,1712881832544,-300.0,0.00025853,2]
[322215638,1712881832554,-16082.25702666,0.00025854,2]
[322215639,1712881832565,-1419.07602562,0.00025854,2]
[322215659,1712881838871,-986.47745754,0.00025854,2]
[322215660,1712881838881,-998.29173332,0.0002596,2]
[322215661,1712881838891,-152.20243931,0.0002606,2]
[322215662,1712881838900,-152.20243931,0.00026283,2]
[322215663,1712881838909,-222.45673557,0.00026346,2]
[322215664,1712881838920,-152.20243931,0.00026506,2]
[322215665,1712881838929,-152.20243931,0.00026729,2]
[322215666,1712881838938,-222.45673557,0.00026754,2]
[322215667,1712881838948,-153.0,0.00026878,2]
[322215668,1712881838957,-152.20243931,0.00026953,2]
[322215669,1712881838967,-153.0,0.00027152,2]
[322215670,1712881838976,-222.45673557,0.00027163,2]
[322215671,1712881838986,-152.20243931,0.00027176,2]
[322215672,1712881838995,-153.0,0.000272,2]
[322215673,1712881839005,-186.91263104,0.00027394,2]
[322215674,1712881839016,-522.96804693,0.00027394,2]
[322215675,1712881839028,-193.09908054,0.00027394,2]
[322215676,1712881839038,-242.86748276,0.00027394,2]
[322215677,1712881839048,-309.65937468,0.00027394,2]
[322215678,1712881839058,-162.33940026,0.00027394,3]
[322215679,1712881839070,-188.12601125,0.00027396,2]
[322215680,1712881839080,-2156.10995145,0.00027396,2]
[322215687,1712881841572,150.6078681,0.00024499,2]
[322215745,1712881843715,-2395.28053544,0.00025596,2]
[322215811,1712882208111,5000.0,0.000241,2]
[322215812,1712882216540,2638.98364371,0.000241,2]
[322215816,1712882413023,319.83345775,0.000241,2]
[322215818,1712882444196,307.42551719,0.00023936,2]
[322215819,1712882457084,365.61753168,0.000241,2]
[322215827,1712882543774,319.91534022,0.000241,2]